bitfinex/quotes_BTCUSD_20260310
["timestamp","ask_amount","ask_price","bid_price","bid_amount"]
[1773145350134,0.03,70544.0,70534.0,0.07232688]
[1773145350794,0.03462519,70544.0,70534.0,0.07232688]
[1773145350998,0.03462519,70544.0,70534.0,0.25871188]
[1773145351547,0.03,70551.0,70537.0,0.00467046]
[1773145351781,0.31471336,70560.0,70537.0,0.00467046]
[1773145351782,0.00462519,70565.0,70540.0,0.186385]
[1773145351986,0.00462519,70565.0,70544.0,0.186385]
[1773145352166,0.07085766,70564.0,70548.0,0.00467046]
[1773145352370,0.03,70563.0,70551.0,0.186385]
[1773145352662,0.03,70563.0,70551.0,0.19105546]
[1773145352975,0.0710751,70567.0,70554.0,0.00467046]
[1773145352976,0.00022001,70567.0,70554.0,0.00467046]
[1773145353165,0.00022001,70567.0,70557.0,0.186385]
[1773145353321,0.00022001,70567.0,70558.0,0.187825]
[1773145353735,0.00022001,70567.0,70559.0,0.00467046]
[1773145353942,0.03,70569.0,70560.0,0.17977259]
[1773145354406,0.1008528,70569.0,70560.0,0.17977259]
[1773145354710,0.0058857,70572.0,70561.0,0.07553113]
[1773145354922,0.00599849,70572.0,70563.0,0.00467046]
[1773145355104,0.00599849,70572.0,70561.0,0.07086067]
[1773145355105,0.00599849,70572.0,70564.0,0.18121259]
[1773145355517,0.00599849,70572.0,70565.0,0.17510213]
[1773145355932,0.00045001,70575.0,70567.0,0.17510213]
[1773145356132,0.00082882,70575.0,70567.0,0.17510213]
[1773145356539,0.00082882,70575.0,70568.0,0.07085364]
[1773145356737,0.03082882,70575.0,70568.0,0.24595577]
[1773145357171,0.00474519,70583.0,70568.0,0.24595577]
[1773145357172,0.00462519,70598.0,70569.0,0.17510213]
[1773145357392,0.00462519,70598.0,70570.0,0.17510213]
[1773145357393,0.00462519,70594.0,70570.0,0.17510213]
[1773145357607,0.00144,70597.0,70570.0,0.17510213]
[1773145357608,0.00462519,70586.0,70570.0,0.17510213]
[1773145357812,0.00462519,70583.0,70571.0,0.00144]
[1773145358470,0.00462519,70583.0,70571.0,0.17654213]
[1773145359805,0.00011358,70598.0,70576.0,0.17510213]
[1773145359806,0.03,70582.0,70576.0,0.17510213]
[1773145360028,0.07083496,70587.0,70578.0,0.17510213]
[1773145360232,0.00451058,70584.0,70579.0,0.00144]
[1773145360434,0.18062294,70584.0,70572.0,0.07084962]
[1773145360637,0.18062294,70584.0,70573.0,0.00144]
[1773145360902,0.03,70583.0,70573.0,0.00144]
[1773145361102,0.03,70583.0,70574.0,0.17510213]
[1773145361251,0.07083496,70587.0,70576.0,0.17510213]
[1773145361689,0.07083496,70587.0,70576.0,0.1799801]
[1773145361890,0.03451058,70588.0,70577.0,0.0722846]
[1773145362413,0.03,70588.0,70578.0,0.17510213]
[1773145362608,0.07082834,70594.0,70578.0,0.17510213]
[1773145362609,0.07082966,70592.0,70578.0,0.17510213]
[1773145362810,0.00022001,70591.0,70577.0,0.07716257]
[1773145363069,0.03022001,70591.0,70578.0,0.1799801]
[1773145363638,0.03022001,70591.0,70579.0,0.00487797]
[1773145363852,0.03,70589.0,70581.0,0.24594272]
[1773145364217,0.03,70589.0,70581.0,0.07084059]
[1773145364419,0.03,70589.0,70582.0,0.00144]
[1773145365138,0.18062294,70593.0,70580.0,0.07084104]
[1773145365139,0.03,70596.0,70580.0,0.07084104]
[1773145365311,0.03,70588.0,70581.0,0.00144]
[1773145365507,0.03,70588.0,70576.0,0.17510213]
[1773145365508,0.00451058,70585.0,70575.0,0.07084606]
[1773145365735,0.00451058,70585.0,70569.0,0.07085264]
[1773145365736,0.03,70581.0,70569.0,0.07085264]
[1773145365934,0.03,70581.0,70570.0,0.00144]
[1773145365935,0.03451058,70581.0,70570.0,0.00144]
[1773145366133,0.21513352,70581.0,70570.0,0.00144]
[1773145366343,0.21513352,70581.0,70569.0,0.07085264]
[1773145366541,0.21513352,70581.0,70571.0,0.00144]
[1773145367062,0.21513352,70581.0,70572.0,0.00144]
[1773145367293,0.21513352,70581.0,70572.0,0.00129324]
[1773145367904,0.03,70579.0,70571.0,0.07085022]
[1773145368080,0.03,70579.0,70573.0,0.00144]
[1773145368289,0.03,70577.0,70574.0,0.00144]
[1773145368464,0.03,70577.0,70568.0,0.07085308]
[1773145368465,0.03,70575.0,70568.0,0.07085308]
[1773145368826,0.03,70575.0,70569.0,0.00144]
[1773145369111,0.03,70575.0,70570.0,0.00144]
[1773145369452,0.03,70577.0,70570.0,0.00144]
[1773145370040,0.03,70577.0,70571.0,0.07085063]
[1773145370448,0.07084159,70580.0,70571.0,0.07085063]
[1773145370449,0.03,70576.0,70571.0,0.07085063]
[1773145370654,0.07106128,70581.0,70571.0,0.07085063]
[1773145371410,0.03,70578.0,70566.0,0.07085565]
[1773145371614,0.21769219,70578.0,70567.0,0.00144]
[1773145371818,0.00490318,70577.0,70567.0,0.00144]
[1773145372492,0.03,70575.0,70567.0,0.07229403]
[1773145373339,0.03,70575.0,70567.0,0.24877727]
[1773145373469,0.03,70576.0,70567.0,0.24877727]
[1773145373674,0.07084042,70582.0,70569.0,0.18101852]
[1773145373900,0.07083356,70588.0,70573.0,0.17648324]
[1773145374099,0.07083356,70588.0,70577.0,0.17648324]
[1773145374412,0.07083356,70588.0,70574.0,0.01284697]
[1773145374413,0.07083356,70588.0,70579.0,0.17648324]
[1773145374636,0.07083356,70588.0,70582.0,0.00453528]
[1773145374816,0.07083356,70588.0,70583.0,0.17648324]
[1773145375318,0.071053,70589.0,70583.0,0.17648324]
[1773145375469,0.03,70588.0,70583.0,0.17648324]
[1773145376477,0.10083375,70588.0,70583.0,0.18101852]
[1773145376821,0.10083375,70588.0,70583.0,0.17648324]
[1773145377131,0.10083373,70588.0,70583.0,0.17648324]
[1773145377284,0.03,70587.0,70583.0,0.17648324]
[1773145377624,0.03,70587.0,70584.0,0.17648324]
[1773145378437,0.00022001,70589.0,70584.0,0.18101852]
[1773145378642,0.00022001,70589.0,70584.0,0.24732034]
[1773145378975,0.00022001,70589.0,70582.0,0.07083953]
[1773145379320,0.03,70588.0,70580.0,0.00144]
[1773145379523,0.07082944,70594.0,70582.0,0.17648324]
[1773145379736,0.001,70599.0,70586.0,0.17648324]
[1773145379958,0.001,70599.0,70588.0,0.17648324]
[1773145380121,0.07182281,70599.0,70586.0,0.00011358]
[1773145380330,0.00490318,70596.0,70587.0,0.00144]
[1773145380632,0.03,70588.0,70587.0,0.00144]
[1773145381913,0.07082725,70595.0,70587.0,0.00144]
[1773145382293,0.07082725,70595.0,70587.0,0.00129324]
[1773145382852,0.10082848,70594.0,70587.0,0.00129324]
[1773145383277,0.03,70594.0,70587.0,0.00129324]
[1773145383484,0.03,70594.0,70587.0,0.0721275]
[1773145384046,0.25361385,70597.0,70587.0,0.0721275]
[1773145384047,0.18278901,70597.0,70587.0,0.0721275]
[1773145384257,0.00590318,70599.0,70587.0,0.0721275]
[1773145384420,0.001,70599.0,70590.0,0.17730465]
[1773145384634,0.001,70599.0,70590.0,0.18183993]
[1773145384898,0.0709672,70605.0,70589.0,0.17730465]
[1773145384899,0.00015,70605.0,70589.0,0.17730465]
[1773145385020,0.0002458,70608.0,70593.0,0.17730465]
[1773145385220,0.0002458,70608.0,70597.0,0.17730465]
[1773145385473,0.0002458,70608.0,70599.0,0.17730465]
[1773145386127,0.0002458,70608.0,70600.0,0.00144]
[1773145386560,0.0002458,70608.0,70601.0,0.17730465]
[1773145386763,0.0002458,70608.0,70601.0,0.24812494]
[1773145387003,0.0002458,70608.0,70591.0,0.19790217]
[1773145387004,0.00490318,70605.0,70577.0,0.17730465]
[1773145387220,0.03,70601.0,70582.0,0.17730465]
[1773145387451,0.03,70601.0,70578.0,0.01480552]
[1773145387452,0.03,70601.0,70587.0,0.17730465]
[1773145387668,0.03,70601.0,70589.0,0.17730465]
[1773145387898,0.00490318,70598.0,70590.0,0.00144]
[1773145388136,0.00490318,70598.0,70591.0,0.00144]
[1773145388328,0.00490318,70598.0,70592.0,0.00144]
[1773145388529,0.00490318,70598.0,70584.0,0.17730465]
[1773145388772,0.00490318,70598.0,70586.0,0.17730465]
[1773145389019,0.00490318,70598.0,70587.0,0.07227457]
[1773145389494,0.00490318,70598.0,70587.0,0.24957922]
[1773145389692,0.03,70596.0,70587.0,0.07083457]
[1773145389890,0.03,70596.0,70588.0,0.00144]
[1773145390097,0.03,70596.0,70588.0,0.17874465]
[1773145390346,0.07082031,70602.0,70588.0,0.17874465]
[1773145390561,0.07082031,70602.0,70588.0,0.18347909]
[1773145390709,0.03,70599.0,70588.0,0.17874465]
[1773145391281,0.0709309,70605.0,70590.0,0.17730465]
[1773145391620,0.25879614,70605.0,70591.0,0.00473444]
[1773145391831,0.03,70604.0,70592.0,0.17730465]
[1773145392686,0.03,70604.0,70592.0,0.01334108]
[1773145392892,0.03,70604.0,70594.0,0.18203909]
[1773145393112,0.03,70604.0,70595.0,0.07226654]
[1773145393543,0.03,70604.0,70595.0,0.24957119]
[1773145393953,0.03,70603.0,70595.0,0.24957119]
[1773145394613,0.03,70603.0,70595.0,0.07226654]
[1773145394785,0.03,70603.0,70596.0,0.17730465]
[1773145396671,0.03,70602.0,70597.0,0.18203909]
[1773145396907,0.0002458,70608.0,70597.0,0.07082453]
[1773145397205,0.0002458,70608.0,70600.0,0.17730465]
[1773145397351,0.0002458,70608.0,70601.0,0.00144]
[1773145397956,0.21786524,70609.0,70601.0,0.00144]
[1773145398158,0.18309877,70607.0,70601.0,0.00144]
[1773145398453,0.10081256,70609.0,70587.0,0.07103397]
[1773145398456,0.03,70604.0,70587.0,0.07103397]
[1773145398672,0.03,70597.0,70587.0,0.07103417]
[1773145398852,0.03476647,70595.0,70588.0,0.00144]
[1773145399062,0.03,70595.0,70588.0,0.00144]
[1773145399262,0.03,70595.0,70587.0,0.07103417]
[1773145399468,0.03,70595.0,70589.0,0.00144]
[1773145399678,0.18309877,70603.0,70590.0,0.17730465]
[1773145399857,0.03,70600.0,70590.0,0.17730465]
[1773145400575,0.03,70600.0,70591.0,0.07083055]
[1773145400784,0.03,70600.0,70591.0,0.07212382]
[1773145401133,0.03,70600.0,70592.0,0.00144]
[1773145401483,0.03,70600.0,70591.0,0.07068382]
[1773145401713,0.03,70600.0,70592.0,0.00144]
[1773145402827,0.03,70596.0,70587.0,0.07103419]
[1773145402980,0.03,70596.0,70588.0,0.00144]
[1773145403199,0.03,70596.0,70587.0,0.07103419]
[1773145403413,0.03,70596.0,70588.0,0.00144]
[1773145403613,0.03,70596.0,70587.0,0.0002]
[1773145403814,0.03,70596.0,70556.0,0.0386]
[1773145403815,0.03,70591.0,70569.0,0.17730465]
[1773145404087,0.49922896,70600.0,70574.0,0.0710933]
[1773145404088,0.03476647,70585.0,70574.0,0.0710933]
[1773145404317,0.21786524,70585.0,70575.0,0.00144]
[1773145404703,0.21786524,70585.0,70576.0,0.07084561]
[1773145405502,0.21786524,70583.0,70575.0,0.00144]
[1773145405838,0.21309877,70583.0,70575.0,0.00144]
[1773145406109,0.07083675,70585.0,70563.0,0.17750465]
[1773145406110,0.18309877,70579.0,70563.0,0.17750465]
[1773145406315,0.18309877,70574.0,70564.0,0.07229766]
[1773145406523,0.03476647,70573.0,70564.0,0.07229766]
[1773145407165,0.03,70573.0,70564.0,0.07229766]
[1773145407346,0.25870929,70578.0,70564.0,0.07267647]
[1773145407347,0.03,70572.0,70564.0,0.07267647]
[1773145407718,0.03,70572.0,70564.0,0.07123647]
[1773145407926,0.03,70572.0,70565.0,0.00144]
[1773145408348,0.03,70575.0,70565.0,0.00144]
[1773145408860,0.03,70575.0,70566.0,0.07085565]
[1773145409444,0.03,70574.0,70566.0,0.07085565]
[1773145410483,0.03,70573.0,70566.0,0.07085565]
[1773145411554,0.03,70572.0,70566.0,0.07085565]
[1773145412476,0.03,70576.0,70566.0,0.07085565]
[1773145412891,0.02909525,70577.0,70566.0,0.07085565]
[1773145413226,0.18786524,70581.0,70567.0,0.01235543]
[1773145413408,0.00144,70584.0,70569.0,0.17730465]
[1773145413409,0.07083814,70584.0,70569.0,0.17730465]
[1773145413580,0.07083814,70584.0,70571.0,0.18203909]
[1773145413581,0.03,70583.0,70571.0,0.18203909]
[1773145413785,0.03,70583.0,70574.0,0.1856857]
[1773145414610,0.03,70582.0,70574.0,0.19042014]
[1773145414840,0.03,70582.0,70575.0,0.19803883]
[1773145415135,0.18786524,70589.0,70577.0,0.1856857]
[1773145415364,0.25869789,70589.0,70577.0,0.1856857]
[1773145415490,0.25869789,70589.0,70578.0,0.00144]
[1773145415491,0.03,70588.0,70578.0,0.00144]
[1773145415739,0.21688692,70588.0,70578.0,0.00144]
[1773145416345,0.00476647,70587.0,70578.0,0.00144]
[1773145416728,0.03,70585.0,70578.0,0.00144]
[1773145416930,0.03,70585.0,70575.0,0.07084591]
[1773145417107,0.03,70585.0,70579.0,0.00144]
[1773145417805,0.18212045,70581.0,70580.0,0.00144]
[1773145418004,0.21688692,70581.0,70580.0,0.00144]
[1773145418556,0.21688692,70581.0,70567.0,0.07085464]
[1773145418752,0.03,70580.0,70570.0,0.1856857]
[1773145419011,0.25295475,70588.0,70574.0,0.19042014]
[1773145419213,0.25295475,70588.0,70576.0,0.1856857]
[1773145419425,0.18212045,70588.0,70576.0,0.1856857]
[1773145419635,0.25295424,70588.0,70576.0,0.1856857]
[1773145420012,0.03,70587.0,70576.0,0.1856857]
[1773145421100,0.03,70587.0,70577.0,0.0708446]
[1773145422149,0.10083465,70587.0,70577.0,0.0708446]
[1773145422501,0.10083465,70587.0,70575.0,0.0722863]
[1773145422502,0.03472736,70585.0,70575.0,0.0722863]
[1773145422744,0.03,70585.0,70577.0,0.1856857]
[1773145422894,0.00022001,70588.0,70577.0,0.1856857]
[1773145423123,0.00022001,70588.0,70578.0,0.0708436]
[1773145423755,0.1010536,70588.0,70578.0,0.0708436]
[1773145424089,0.1010536,70588.0,70577.0,0.07084391]
[1773145424383,0.00472736,70586.0,70577.0,0.07084391]
[1773145424561,0.03,70584.0,70577.0,0.07084391]
[1773145424979,0.03,70584.0,70570.0,0.1856857]
[1773145425153,0.03,70579.0,70565.0,0.07105467]
[1773145425353,0.21212045,70579.0,70566.0,0.00144]
[1773145425570,0.00472736,70578.0,70566.0,0.00144]
[1773145425892,0.00472736,70578.0,70565.0,0.07105467]
[1773145425893,0.03,70576.0,70565.0,0.07105627]
[1773145426104,0.03,70576.0,70567.0,0.00144]
[1773145426597,0.03,70576.0,70568.0,0.00144]
[1773145427501,0.18684781,70577.0,70568.0,0.07229284]
[1773145427648,0.18667169,70577.0,70568.0,0.07229284]
[1773145427849,0.07084507,70577.0,70565.0,0.07105627]
[1773145428050,0.03,70573.0,70565.0,0.07105664]
[1773145428293,0.03,70573.0,70566.0,0.00144]
[1773145428704,0.03,70573.0,70565.0,0.07105664]
[1773145428904,0.00472742,70572.0,70558.0,0.07106348]
[1773145429062,0.03,70567.0,70559.0,0.00144]
[1773145429262,0.03,70567.0,70558.0,0.00031279]
[1773145429466,0.00472742,70563.0,70556.0,0.00144]
[1773145429664,0.03,70562.0,70556.0,0.00144]
[1773145429890,0.03,70562.0,70553.0,0.07086843]
[1773145430069,0.03,70562.0,70554.0,0.00144]
[1773145432555,0.03,70562.0,70554.0,0.00164]
[1773145433109,0.03,70562.0,70554.0,0.0725077]
[1773145434650,0.03,70563.0,70554.0,0.0725077]
[1773145435530,0.00494743,70576.0,70555.0,0.19475878]
[1773145435667,0.03,70574.0,70558.0,0.0046888]
[1773145436002,0.03,70574.0,70559.0,0.19475878]
[1773145436182,0.21600971,70574.0,70559.0,0.19475878]
[1773145436381,0.03,70572.0,70560.0,0.07086167]
[1773145436916,0.03,70572.0,70562.0,0.19475878]
[1773145437454,0.03,70571.0,70562.0,0.19475878]
[1773145438002,0.03,70571.0,70563.0,0.00144]
[1773145438604,0.03,70570.0,70563.0,0.07229779]
[1773145439629,0.03,70569.0,70563.0,0.07229779]
[1773145440634,0.07084875,70573.0,70563.0,0.07229779]
[1773145440635,0.03,70568.0,70563.0,0.07229779]
[1773145441267,0.03,70568.0,70563.0,0.07249779]
[1773145441834,0.03,70572.0,70563.0,0.07249779]
[1773145443358,0.03,70571.0,70563.0,0.07249779]
[1773145443559,0.03,70571.0,70563.0,0.26256777]
[1773145444565,0.03,70573.0,70563.0,0.26256777]
[1773145444984,0.10084893,70573.0,70563.0,0.19170998]
[1773145445508,0.03,70569.0,70564.0,0.00144]
[1773145445879,0.21779609,70569.0,70564.0,0.00144]
[1773145446270,0.03,70569.0,70565.0,0.00144]
[1773145446623,0.03,70568.0,70565.0,0.00144]
[1773145447044,0.21779609,70567.0,70566.0,0.00144]
[1773145447292,0.21779609,70567.0,70555.0,0.07106599]
[1773145447469,0.00472742,70566.0,70556.0,0.07230487]
[1773145447817,0.00472742,70566.0,70556.0,0.07086487]
[1773145448064,0.00472742,70566.0,70557.0,0.00144]
[1773145448216,0.00455125,70566.0,70557.0,0.00144]
[1773145448712,0.03,70565.0,70555.0,0.0002]
[1773145448936,0.03,70565.0,70556.0,0.00144]
[1773145448937,0.21306867,70565.0,70556.0,0.00144]
[1773145449140,0.21306867,70565.0,70557.0,0.00144]
[1773145449141,0.00472742,70564.0,70557.0,0.00144]
[1773145449342,0.21779609,70562.0,70557.0,0.00144]
[1773145449576,0.03,70562.0,70557.0,0.00144]
[1773145450326,0.07085607,70566.0,70557.0,0.00144]
[1773145450525,0.07085607,70566.0,70558.0,0.17510892]
[1773145450727,0.12444427,70570.0,70558.0,0.17510892]
[1773145450728,0.07085264,70569.0,70558.0,0.17510892]
[1773145450932,0.07085201,70570.0,70559.0,0.07086268]
[1773145451653,0.03,70569.0,70557.0,0.00144]
[1773145451853,0.03,70563.0,70558.0,0.00144]
[1773145452085,0.21788921,70563.0,70559.0,0.00144]
[1773145452283,0.00482054,70562.0,70555.0,0.0002]
[1773145452485,0.00482054,70562.0,70556.0,0.00144]
[1773145452684,0.21788921,70560.0,70557.0,0.00144]
[1773145452887,0.21788921,70560.0,70558.0,0.00144]
[1773145453331,0.21306867,70560.0,70557.0,0.00144]
[1773145453544,0.21306867,70558.0,70557.0,0.00144]
[1773145453712,0.21306867,70558.0,70556.0,0.00144]
[1773145454109,0.21306867,70558.0,70550.0,0.07130168]
[1773145454310,0.21306867,70558.0,70551.0,0.00144]
[1773145454542,0.03,70562.0,70551.0,0.00144]
[1773145454748,0.03,70562.0,70552.0,0.07230971]
[1773145455233,0.03,70562.0,70550.0,0.07130168]
[1773145455234,0.03,70560.0,70549.0,0.07087229]
[1773145455434,0.03,70555.0,70550.0,0.00144]
[1773145455657,0.12445202,70562.0,70548.0,0.0002]
[1773145455658,0.03,70553.0,70548.0,0.0002]
[1773145456001,0.03,70553.0,70549.0,0.24742164]
[1773145456121,0.03,70553.0,70549.0,0.07231272]
[1773145456528,0.03,70552.0,70549.0,0.00144]
[1773145456836,0.03010186,70552.0,70549.0,0.07231268]
[1773145457248,0.03010186,70552.0,70549.0,0.00144]
[1773145457764,0.00010186,70552.0,70549.0,0.00144]
[1773145458988,0.00010186,70552.0,70549.0,0.00164]
[1773145460380,0.00010186,70552.0,70550.0,0.00144]
[1773145460725,0.00010186,70552.0,70551.0,0.00144]
[1773145460939,0.03,70555.0,70551.0,0.00144]
[1773145461809,0.03,70556.0,70551.0,0.00144]
[1773145462236,0.10086662,70556.0,70551.0,0.00144]
[1773145465655,0.03,70554.0,70546.0,0.0002]
[1773145465822,0.21306867,70552.0,70551.0,0.0002]
[1773145466018,0.21306867,70552.0,70550.0,0.00144]
[1773145466451,0.03,70552.0,70550.0,0.00144]
[1773145466871,0.03,70552.0,70543.0,0.0002]
[1773145466872,0.03,70551.0,70543.0,0.0002]
[1773145467211,0.03,70551.0,70532.0,0.0002]
[1773145467212,0.03,70543.0,70536.0,0.07108568]
[1773145467490,0.03,70543.0,70536.0,0.24619441]
[1773145467807,0.03,70543.0,70536.0,0.17530892]
[1773145468139,0.10087876,70543.0,70534.0,1e-08]
[1773145468371,0.28876797,70543.0,70535.0,0.00144]
[1773145469316,0.03,70541.0,70536.0,0.00144]
[1773145469517,0.03,70533.0,70531.0,0.00144]
[1773145469727,0.25395693,70534.0,70527.0,0.00164]
[1773145469941,0.25378074,70534.0,70527.0,0.0002]
[1773145470160,0.25360454,70534.0,70528.0,0.00144]
[1773145470330,0.07088826,70534.0,70527.0,0.00144]
[1773145470535,0.07088664,70536.0,70527.0,0.00144]
[1773145470918,0.03,70535.0,70527.0,0.00144]
[1773145473328,0.10088709,70535.0,70527.0,0.00164]
[1773145473813,0.03,70534.0,70527.0,0.0725348]
[1773145473969,0.07088389,70538.0,70528.0,0.18044555]
[1773145474387,0.07088038,70542.0,70529.0,0.00475004]
[1773145474619,0.07088038,70542.0,70531.0,0.00475004]
[1773145474826,0.07087911,70543.0,70531.0,0.18519559]
[1773145475031,0.03,70542.0,70531.0,0.18519559]
[1773145475781,0.10087985,70542.0,70531.0,0.25608638]
[1773145476263,0.10087985,70542.0,70530.0,0.0708917]
[1773145476498,0.29267763,70542.0,70530.0,0.0708917]
[1773145476719,0.03,70539.0,70527.0,0.0725348]
[1773145476938,0.03,70537.0,70527.0,0.0725348]
[1773145477150,0.03,70537.0,70528.0,0.18519559]
[1773145477397,0.06961004,70542.0,70528.0,0.18519559]
[1773145477620,0.25658728,70542.0,70528.0,0.18519559]
[1773145477823,0.26140782,70542.0,70529.0,0.07089282]
[1773145478002,0.03,70541.0,70529.0,0.07089282]
[1773145478565,0.03,70541.0,70530.0,0.18044555]
[1773145478935,0.18697724,70539.0,70527.0,0.00164]
[1773145479134,0.19162147,70538.0,70527.0,0.0002]
[1773145479354,0.03,70537.0,70528.0,0.00144]
[1773145479555,0.03,70537.0,70527.0,0.07109437]
[1773145479778,0.10088566,70537.0,70529.0,0.00144]
[1773145480967,0.07070941,70537.0,70531.0,0.0002]
[1773145481168,0.07070941,70537.0,70531.0,0.00164]
[1773145481532,0.18697724,70536.0,70525.0,0.18087555]
[1773145481901,0.18697724,70536.0,70520.0,0.0003927]
[1773145481902,0.18697724,70528.0,70520.0,0.0003927]
[1773145482118,0.03,70527.0,70523.0,0.00144]
[1773145482433,0.03,70527.0,70520.0,0.0003927]
[1773145482639,0.03,70527.0,70521.0,0.00144]
[1773145482840,0.03,70529.0,70521.0,0.00144]
[1773145483046,0.03,70529.0,70521.0,0.00154186]
[1773145484330,0.03,70527.0,70521.0,0.00154186]
[1773145486796,0.10089517,70527.0,70521.0,0.00154186]
[1773145487294,0.03,70526.0,70522.0,0.17548668]
[1773145487495,0.03,70526.0,70523.0,0.00469901]
[1773145487830,0.03,70526.0,70523.0,0.17548668]
[1773145488023,0.06205193,70530.0,70523.0,0.17548668]
[1773145488204,0.00022001,70535.0,70524.0,0.18018569]
[1773145488405,0.03004374,70535.0,70524.0,0.18018569]
[1773145488616,0.03,70533.0,70524.0,0.18018569]
[1773145489257,0.03,70531.0,70521.0,0.00174186]
[1773145490604,0.10089136,70531.0,70521.0,0.00030186]
[1773145490825,0.10089136,70531.0,70522.0,0.00144]
[1773145491029,0.03,70529.0,70522.0,0.00144]
[1773145492135,0.03,70529.0,70521.0,0.00030186]
[1773145492487,0.00465813,70524.0,70520.0,0.00144]
[1773145492684,0.03,70522.0,70517.0,0.0002]
[1773145492866,0.03,70522.0,70518.0,0.00144]
[1773145493220,0.03,70522.0,70517.0,0.00031358]
[1773145493414,0.03,70522.0,70519.0,0.00144]
[1773145494026,0.03,70522.0,70519.0,0.0016573]
[1773145494535,0.03,70521.0,70518.0,0.00144]
[1773145494944,0.03,70521.0,70510.0,0.07561054]
[1773145494945,0.03,70521.0,70507.0,0.18018569]
[1773145494946,0.03,70519.0,70507.0,0.18018569]
[1773145495145,0.12449413,70520.0,70509.0,0.17548668]
[1773145495999,0.12449413,70520.0,70510.0,0.00144]
[1773145496152,0.12449413,70520.0,70509.0,0.17548668]
[1773145496353,0.00465813,70519.0,70510.0,0.00144]
[1773145496554,0.00465813,70519.0,70505.0,0.0002583]
[1773145496555,0.12449413,70520.0,70509.0,0.00144]
[1773145496556,0.00465813,70515.0,70509.0,0.00144]
[1773145496772,0.03465813,70511.0,70509.0,0.00144]
[1773145496975,0.03,70511.0,70509.0,0.00144]
[1773145497697,0.03,70513.0,70509.0,0.00144]
[1773145498708,0.03,70512.0,70509.0,0.00144]
[1773145499908,0.03,70511.0,70505.0,0.0002583]
[1773145500058,0.03,70511.0,70506.0,0.00144]
[1773145500590,0.03,70511.0,70507.0,0.00144]
[1773145500785,0.03,70510.0,70507.0,0.17692668]
[1773145501006,0.07090643,70516.0,70507.0,0.17692668]
[1773145501563,0.07090643,70516.0,70507.0,0.00144]
[1773145501788,0.07556456,70516.0,70509.0,0.0002]
[1773145502111,0.03,70513.0,70508.0,0.00144]
[1773145502345,0.03,70510.0,70501.0,0.0002]
[1773145502534,0.21172667,70510.0,70502.0,0.00144]
[1773145502954,0.28263921,70510.0,70501.0,0.0002]
[1773145503124,0.28263921,70510.0,70503.0,0.00144]
[1773145503346,0.28263921,70510.0,70501.0,0.0002]
[1773145503553,0.28263921,70510.0,70494.0,0.07112728]
[1773145503554,0.03465813,70508.0,70502.0,0.00144]
[1773145503706,0.03,70505.0,70494.0,0.0002]
[1773145503910,0.20499182,70503.0,70495.0,0.00144]
[1773145504107,0.20499182,70503.0,70494.0,0.0002]
[1773145504327,0.00465813,70502.0,70491.0,0.0002583]
[1773145504569,0.03,70500.0,70492.0,0.00144]
[1773145505286,0.00465813,70497.0,70480.0,0.18516978]
[1773145505496,0.03,70491.0,70481.0,0.00144]
[1773145505698,0.03,70489.0,70481.0,0.00144]
[1773145506149,0.03,70489.0,70481.0,0.18660978]
[1773145506715,0.03,70490.0,70481.0,0.18660978]
[1773145507433,0.07092645,70496.0,70483.0,0.00469901]
[1773145507639,0.03,70495.0,70484.0,0.18516978]
[1773145507811,0.03,70495.0,70486.0,0.18986879]
[1773145508054,0.03,70495.0,70488.0,0.18516978]
[1773145509401,0.03,70494.0,70488.0,0.18516978]
[1773145509617,0.05371921,70500.0,70488.0,0.18516978]
[1773145509618,0.07092007,70502.0,70489.0,0.18516978]
[1773145509832,0.07092007,70502.0,70491.0,0.18516978]
[1773145510037,0.05371921,70501.0,70491.0,0.18516978]
[1773145510471,0.03,70500.0,70491.0,0.18516978]
[1773145510889,0.0710306,70505.0,70491.0,0.00480508]
[1773145511128,0.0710306,70505.0,70494.0,0.18516978]
[1773145511259,0.0710306,70505.0,70495.0,0.00144]
[1773145511598,0.10091841,70504.0,70495.0,0.00144]
[1773145511806,0.03,70504.0,70495.0,0.00144]
[1773145512009,0.03,70504.0,70496.0,0.18997486]
[1773145512211,0.10091804,70504.0,70496.0,0.18997486]
[1773145512517,0.03,70503.0,70496.0,0.18997486]
[1773145512923,0.03,70503.0,70497.0,0.00144]
[1773145513125,0.03,70503.0,70498.0,0.18997486]
[1773145513439,0.03,70503.0,70498.0,0.18516978]
[1773145513666,0.03,70502.0,70498.0,0.18516978]
[1773145514690,0.03,70501.0,70498.0,0.18516978]
[1773145514957,0.00011356,70505.0,70498.0,0.18516978]
[1773145515167,0.07103088,70505.0,70498.0,0.18516978]
[1773145515491,0.00011356,70505.0,70498.0,0.18516978]
[1773145515695,0.03011356,70505.0,70498.0,0.18516978]
[1773145516100,0.03011356,70505.0,70499.0,0.00144]
[1773145516622,0.07091602,70506.0,70499.0,0.18660978]
[1773145517709,0.03,70507.0,70499.0,0.18660978]
[1773145518320,0.07091293,70509.0,70499.0,0.18660978]
[1773145518529,0.0765259,70516.0,70503.0,0.00480508]
[1773145518713,0.0765259,70516.0,70504.0,0.18516978]
[1773145518714,0.03,70515.0,70504.0,0.18516978]
[1773145518917,0.0765259,70516.0,70504.0,0.18516978]
[1773145518918,0.03,70513.0,70505.0,0.00144]
[1773145520070,0.03,70512.0,70505.0,0.00144]
[1773145521096,0.10090906,70513.0,70505.0,0.00144]
[1773145521742,0.10090906,70513.0,70500.0,0.07092101]
[1773145521743,0.10090906,70513.0,70501.0,0.0709207]
[1773145521885,0.10090906,70513.0,70501.0,0.18516978]
[1773145521886,0.03,70510.0,70501.0,0.18516978]
[1773145522091,0.03,70510.0,70502.0,0.00144]
[1773145522524,0.03,70510.0,70501.0,0.18516978]
[1773145522726,0.03,70510.0,70503.0,0.00144]
[1773145523043,0.03,70510.0,70501.0,0.18516978]
[1773145523220,0.03,70510.0,70504.0,0.00144]
[1773145523922,0.03,70510.0,70505.0,0.00144]
[1773145524120,0.03,70510.0,70495.0,0.18516978]